lending/lending_fUSD_20240120
["ID","MTS","AMOUNT","RATE_DAILY","PERIOD"]
[312321746,1705773046966,-553.98408638,0.00035632,2]
[312321747,1705773046976,-26577.94648358,0.00035632,2]
[312321748,1705773046985,-2275.51282941,0.00035632,2]
[312321749,1705773046994,-230.20530537,0.00035632,2]
[312321750,1705773047003,-1572.26888259,0.00035632,2]
[312321751,1705773047013,-515.48759978,0.00035632,2]
[312321752,1705773047023,-196789.79649292,0.00035632,2]
[312321753,1705773047035,-2547.5,0.00035632,2]
[312321754,1705773047047,-735.9234,0.00035632,2]
[312321755,1705773047058,-1660.0,0.00035632,2]
[312321756,1705773047070,-503.5,0.00035632,2]
[312321757,1705773047081,-842.0,0.00035632,2]
[312321758,1705773047093,-3090.32308473,0.00035632,2]
[312321759,1705773047104,-4669.49965607,0.00035632,2]
[312321760,1705773047116,-20875.0,0.00035632,2]
[312321771,1705773793269,305.810498,0.00035617,30]
[312321773,1705774134824,361.6502114,0.00018318,2]
[312321775,1705774155499,-352.09698439,0.00019514,2]
[312321776,1705774232298,-226.11786442,0.00019512,2]
[312321777,1705774232312,-230.6388667,0.00019512,2]
[312321778,1705774232322,-1050.80754485,0.00019513,2]
[312321779,1705774232332,-155.0,0.00019513,2]
[312321780,1705774232342,-155.0,0.00019514,2]
[312321781,1705774232353,-544.50637499,0.00019514,2]
[312321782,1705774232362,-533.55329785,0.00019514,2]
[312321783,1705774232372,-857.29441409,0.00019514,2]
[312321784,1705774232382,-532.69358857,0.00019514,2]
[312321785,1705774232391,-885.62248904,0.00019514,2]
[312321786,1705774232400,-156.86047358,0.00019514,2]
[312321787,1705774232413,-155.0,0.00019514,2]
[312321788,1705774232422,-500.0,0.00019514,2]
[312321789,1705774232433,-283.34219518,0.00019514,2]
[312321790,1705774232442,-220.3915271,0.00019514,2]
[312321791,1705774232451,-43.24326888,0.00019514,2]
[312321792,1705774232461,-241.62,0.00019524,2]
[312321793,1705774232471,-692.19851741,0.000197,2]
[312321794,1705774232481,-1377.601495,0.0002,2]
[312321795,1705774232490,-2896.35435232,0.00020505,2]
[312321796,1705774232510,-5457.29991268,0.00020505,2]
[312321797,1705774232520,-155.3777303,0.00020608,2]
[312321798,1705774232530,-155.6167209,0.00020608,2]
[312321799,1705774232539,-474.16,0.00021225,2]
[312321800,1705774232549,-3986.23,0.0002123,2]
[312321801,1705774232559,-500.0,0.00021356,2]
[312321802,1705774232568,-153.23,0.00021364,2]
[312321803,1705774232578,-1782.70071536,0.00021368,2]
[312321805,1705774232590,-678.38466293,0.00021368,2]
[312321807,1705774232614,-662.945,0.00021368,2]
[312321808,1705774232625,-668.952,0.00021368,2]
[312321810,1705774232654,-815.6374002,0.00021368,2]
[312321812,1705774232665,-338.9958,0.00021368,2]
[312321815,1705774232683,-781.59442151,0.00021368,2]
[312321817,1705774232693,-2000.0,0.0002138,2]
[312321819,1705774232702,-250.0,0.00021384,2]
[312321821,1705774232711,-164.44,0.000214,2]
[312321823,1705774232721,-666.74,0.00021409,2]
[312321825,1705774232730,-151.35,0.00021478,2]
[312321827,1705774232739,-153.23,0.00021506,2]
[312321829,1705774232748,-152.42267703,0.0002151,2]
[312321831,1705774232757,-151.35,0.00021543,2]
[312321833,1705774232766,-151.35,0.00021609,2]
[312321835,1705774232775,-287.87367272,0.00021644,2]
[312321837,1705774232786,-331.07632728,0.00021644,2]
[312321839,1705774232796,-153.23,0.00021649,2]
[312321842,1705774232805,-156.97,0.00021672,2]
[312321844,1705774232814,-151.35,0.00021675,2]
[312321846,1705774232823,-646.47,0.00021713,2]
[312321847,1705774232832,-151.35,0.00021741,2]
[312321848,1705774232842,-152.42267701,0.00021742,2]
[312321849,1705774232851,-241.62,0.00021788,2]
[312321850,1705774232860,-153.23,0.00021791,2]
[312321851,1705774232936,-39.78099571,0.00021807,2]
[312321852,1705774232948,-111.56900429,0.00021807,2]
[312321853,1705774232957,-2221.898,0.00021847,2]
[312321854,1705774232966,-151.35,0.00021873,2]
[312321855,1705774232975,-250.0,0.00021918,2]
[312321856,1705774232984,-164.26,0.00021937,2]
[312321857,1705774232993,-168.3,0.00021937,2]
[312321858,1705774233002,-151.35,0.00021939,2]
[312321859,1705774233011,-152.42267701,0.00021973,2]
[312321860,1705774233020,-3190.67771766,0.00021982,2]
[312321861,1705774233029,-279.69091136,0.00022,2]
[312321862,1705774233038,-150.0,0.00022,2]
[312321863,1705774233047,-446.22337711,0.00022,2]
[312321864,1705774233056,-151.35,0.00022004,2]
[312321865,1705774233066,-1000.0,0.00022025,2]
[312321866,1705774233083,-168.3,0.00022046,2]
[312321867,1705774233094,-151.35,0.0002207,2]
[312321868,1705774233104,-151.35,0.00022136,2]
[312321869,1705774233113,-168.3,0.00022156,2]
[312321870,1705774233122,-151.35,0.00022202,2]
[312321871,1705774233131,-152.42267701,0.00022205,2]
[312321872,1705774233140,-168.3,0.00022266,2]
[312321873,1705774233150,-151.35,0.00022268,2]
[312321874,1705774233159,-151.35,0.00022334,2]
[312321875,1705774233168,-168.3,0.00022375,2]
[312321876,1705774233178,-151.35,0.00022399,2]
[312321877,1705774233187,-500.0,0.000224,8]
[312321878,1705774233196,-107.18563555,0.00022437,2]
[312321892,1705774238321,-45.23704146,0.00022437,2]
[312321895,1705774238331,-618.95,0.00022445,2]
[312321897,1705774238341,-151.35,0.00022465,2]
[312321899,1705774238351,-1000.0,0.00022499,2]
[312321901,1705774238361,-2825.843,0.00022499,2]
[312321903,1705774238370,-1100.0,0.000225,8]
[312321905,1705774238379,-151.35,0.00022531,2]
[312321907,1705774238390,-158.81,0.00022587,2]
[312321908,1705774238399,-151.35,0.00022597,2]
[312321909,1705774238408,-1700.0,0.000226,8]
[312321911,1705774238418,-152.42267701,0.00022668,2]
[312321912,1705774238427,-10340.83733443,0.00022669,2]
[312321913,1705774238436,-1869.94190803,0.000227,8]
[312321914,1705774238451,-430.05809197,0.000227,8]
[312321915,1705774238460,-2121.53201396,0.0002274,2]
[312321916,1705774239190,-2415.82005601,0.0002274,2]
[312321917,1705774239249,-5462.64793003,0.0002274,2]
[312321918,1705774239259,-485.59833642,0.00022767,2]
[312321919,1705774239268,-1000.0,0.00022798,5]
[312321920,1705774239278,-826.31972725,0.00022798,5]
[312321921,1705774239289,-2900.0,0.000228,8]
[312321922,1705774239299,-1000.0,0.00022899,2]
[312321924,1705774239308,-450.7743466,0.00022899,2]
[312321926,1705774239318,-450.77434657,0.00022899,2]
[312321928,1705774239327,-450.77434657,0.000229,2]
[312321929,1705774239336,-450.77434657,0.000229,2]
[312321932,1705774239345,-155.18697971,0.000229,2]
[312321933,1705774239355,-152.42267701,0.000229,2]
[312321935,1705774239364,-5000.0,0.000229,2]
[312321937,1705774239374,-27815.8500546,0.000229,6]
[312321940,1705774239385,-44736.2602,0.000229,2]
[312321942,1705774239396,-185.63118467,0.000229,2]
[312321943,1705774239405,-1806.2822096,0.000229,2]
[312321945,1705774239414,-335.5996367,0.000229,2]
[312321947,1705774239423,-187.18634131,0.000229,2]
[312321950,1705774239434,-8899.03431482,0.000229,2]
[312321952,1705774239443,-182.9562349,0.000229,2]
[312321953,1705774239453,-1633.40841489,0.000229,2]
[312321955,1705774239462,-6497.42259166,0.000229,2]
[312321958,1705774239472,-500.0,0.000229,8]
[312321960,1705774239481,-4651.86755386,0.0002298,2]
[312321961,1705774239491,-559.27158881,0.00022989,2]
[312321963,1705774239500,-559.27158881,0.0002299,2]
[312321965,1705774239510,-559.27158881,0.0002299,2]
[312321968,1705774239520,-213.20943281,0.00022997,2]
[312321970,1705774239530,-317.43646122,0.00022997,2]
[312321971,1705774239539,-3029.53701716,0.00022997,2]
[312321973,1705774239548,-295.46237176,0.00022997,2]
[312321975,1705774239558,-698.04764279,0.00022997,2]
[312321978,1705774239567,-1915.18587891,0.00022997,2]
[312321979,1705774239576,-1812.15097522,0.00022997,2]
[312321982,1705774239586,-490.2541717,0.00022997,2]
[312321984,1705774239595,-155.17564555,0.00022997,2]
[312321986,1705774239604,-203.29975543,0.00022997,2]
[312321988,1705774239613,-2020.53490244,0.00022997,2]
[312321990,1705774239622,-664.6393,0.00022997,2]
[312321992,1705774239631,-3808.26321779,0.00022998,2]
[312321994,1705774239640,-2828.81846847,0.00022998,2]
[312321996,1705774239649,-278.0072,0.00022998,2]
[312321998,1705774239659,-2006.18664,0.00022998,2]
[312322000,1705774239668,-500.0,0.00022998,2]
[312322002,1705774239677,-505905.04796851,0.00022999,2]
[312322003,1705774239686,-199.78338972,0.00022999,2]
[312322005,1705774239695,-188.6362865,0.00022999,2]
[312322008,1705774239705,-199.78338972,0.00022999,2]
[312322010,1705774239714,-188.6362865,0.00022999,2]
[312322012,1705774239723,-199.78338972,0.00022999,2]
[312322014,1705774239732,-188.6362865,0.00022999,2]
[312322015,1705774239742,-199.78338972,0.00022999,2]
[312322017,1705774239751,-188.6362865,0.00022999,2]
[312322019,1705774239760,-339131.59675452,0.00023,3]
[312322021,1705774239769,-1608785.99031634,0.00023,2]
[312322024,1705774239781,-426487.768516,0.00023,2]
[312322026,1705774239792,-103956.77504338,0.00023,2]
[312322051,1705774240847,-450.77434657,0.000229,2]
[312322053,1705774240857,-207619.22565344,0.00023,2]
[312322057,1705774241550,-1494.02985546,0.000228,2]
[312322058,1705774241660,-582.17636691,0.000228,2]
[312322081,1705774243334,-157.24346844,0.00019514,2]
[312322083,1705774243343,-281.92571074,0.00019514,2]
[312322088,1705774243392,-251.62758711,0.00019514,2]
[312322090,1705774243401,-5848.07514371,0.000228,2]
[312322092,1705774243417,-966.79500925,0.000228,2]
[312322112,1705774244109,-3168.64274316,0.000228,2]
[312322113,1705774244119,-405.9212378,0.00022898,2]
[312322114,1705774244128,-149421.18487402,0.00023,2]
[312322115,1705774244166,-1813.79317867,0.00023,2]
[312322118,1705774246461,-936.82084723,0.00019514,2]
[312322119,1705774246471,-175.57349097,0.00019514,2]
[312322120,1705774246480,-155.0,0.00019514,2]
[312322121,1705774246490,-66.03948173,0.00023,2]
[312322122,1705774246677,-953.47419143,0.00023,2]
[312322123,1705774246735,-275.81371369,0.00022999,2]
[312322124,1705774246744,-20649.18628631,0.00023,2]
[312322125,1705774259032,300.0,0.00019415,2]
[312322126,1705774301390,532.69358857,0.00019415,2]
[312322127,1705774305124,500.0,0.00019415,2]
[312322128,1705774306846,220.3915271,0.00019415,2]
[312322129,1705774317389,301.93836225,0.00019415,2]
[312322130,1705774322845,220.3915271,0.00019415,2]
[312322131,1705774323379,293.40631255,0.00019415,2]
[312322132,1705774340877,220.3915271,0.00019415,2]
[312322133,1705774358852,220.3915271,0.00019415,2]
[312322134,1705774382851,221.11062984,0.00019415,2]
[312322135,1705774395347,17997.65,0.00035618,30]
[312322136,1705774403051,-2000.0,0.00019513,2]
[312322137,1705774404446,-2000.0,0.00019513,2]
[312322138,1705774405565,-2000.0,0.00019513,2]
[312322139,1705774406695,-1375.83233751,0.00019513,2]
[312322140,1705774406715,-150.0,0.00019513,2]
[312322141,1705774406736,-474.16766249,0.00019514,2]
[312322142,1705774407831,-97.87758265,0.00019514,2]
[312322143,1705774407851,-288.56341681,0.00019514,2]
[312322144,1705774407871,-672.50337462,0.00019514,2]
[312322145,1705774407892,-155.37246916,0.00019514,2]
[312322146,1705774407912,-302.94892659,0.00019514,2]
[312322147,1705774435651,482.73423017,0.00020475,2]
[312322148,1705774435673,568.07331468,0.00020475,2]
[312322149,1705774478241,230.6388667,0.00020475,2]
[312322150,1705774485568,1201.28781862,0.0002027,2]
[312322151,1705774485589,979.13938819,0.0002027,2]
[312322152,1705774489958,1020.86061181,0.00019413,2]
[312322153,1705774489978,1948.31808819,0.00019413,2]
[312322154,1705774497393,51.68191181,0.0002027,2]
[312322155,1705774497418,2000.0,0.0002027,2]
[312322156,1705774497440,128.745295,0.0002027,2]
[312322157,1705774498642,1098.1329655,0.00020475,2]
[312322158,1705774512612,773.1217395,0.00020475,2]
[312322159,1705774560245,-2180.42720681,0.0002027,2]
[312322160,1705774560272,-227.4835682,0.00020475,2]
[312322161,1705774560300,-847.06410669,0.00020475,2]
[312322162,1705774560329,-333.77,0.00020476,2]
[312322163,1705774571850,847.06410669,0.00020475,2]
[312322164,1705774587846,280.1186454,0.00020475,2]
[312322165,1705774591194,1866.471168,0.00035709,30]
[312322168,1705774688746,305.810498,0.00035709,30]
[312322169,1705774782611,366.93,0.0001939,2]
[312322171,1705774848029,857.29441409,0.0001939,2]
[312322172,1705774849061,361.34078725,0.0001939,2]
[312322173,1705774852006,155.0,0.0001939,2]
[312322174,1705774852155,155.0,0.0001939,2]
[312322175,1705774854079,885.62248904,0.0001939,2]
[312322176,1705774855964,532.69358857,0.0001939,2]
[312322177,1705774857904,5194.03576086,0.0001939,2]
[312322178,1705774858859,8187.4104447,0.0001939,2]
[312322179,1705774858882,10789.56927773,0.0001939,2]
[312322180,1705774859889,292.2694921,0.0001939,2]
[312322181,1705774861743,155.0,0.0001939,2]
[312322182,1705774863571,155.0,0.0001939,2]
[312322183,1705774864045,856.10256511,0.0001939,2]
[312322184,1705774865073,361.34078725,0.0001939,2]
[312322185,1705774865194,7428.02088913,0.0001939,2]
[312322186,1705774866059,155.0,0.0001939,2]
[312322187,1705774866113,155.24335567,0.0001939,2]
[312322188,1705774870026,884.33042664,0.0001939,2]
[312322189,1705774871518,1894.97702682,0.0001939,2]
[312322190,1705774875892,292.2694921,0.0001939,2]
[312322191,1705774875983,531.90976537,0.0001939,2]
[312322192,1705774879715,2930.40625267,0.0001939,2]
[312322193,1705774879742,155.0,0.0001939,2]
[312322194,1705774881715,155.0,0.0001939,2]
[312322195,1705774883381,533.37470322,0.0001939,2]
[312322196,1705774884829,1033.92055253,0.0001939,2]
[312322197,1705774885194,7428.02088913,0.0001939,2]
[312322198,1705774885588,155.20448562,0.0001939,2]
[312322199,1705774887051,361.34078725,0.0001939,2]
[312322200,1705774891519,1894.97702682,0.0001939,2]
[312322201,1705774891970,532.30167697,0.0001939,2]
[312322202,1705774893384,18949.79193109,0.0001939,2]
[312322203,1705774895555,155.0,0.0001939,2]
[312322204,1705774895891,292.2694921,0.0001939,2]
[312322205,1705774898019,155.0,0.0001939,2]
[312322206,1705774901392,533.37470322,0.0001939,2]
[312322207,1705774903193,7428.02088913,0.0001939,2]
[312322208,1705774903591,155.0,0.0001939,2]
[312322209,1705774903724,155.0,0.0001939,2]
[312322210,1705774904839,1033.92055253,0.0001939,2]
[312322211,1705774906029,884.97645784,0.0001939,2]
[312322212,1705774910033,857.29441409,0.0001939,2]
[312322213,1705774911058,361.34078725,0.0001939,2]
[312322214,1705774913505,1894.97702682,0.0001939,2]
[312322215,1705774913919,296.20737674,0.0001939,2]
[312322216,1705774919722,242.88431625,0.0001939,2]
[312322217,1705774920047,884.97645784,0.0001939,2]
[312322218,1705774921217,7428.02088913,0.0001939,2]
[312322219,1705774921423,533.37470322,0.0001939,2]
[312322220,1705774923584,263.23464751,0.0001939,2]
[312322221,1705774924873,1033.92055253,0.0001939,2]
[312322222,1705774927870,18976.97972243,0.0001939,2]
[312322223,1705774927976,532.30167697,0.0001939,2]
[312322224,1705774930025,189.44894637,0.0001939,2]
[312322225,1705774932040,857.29441409,0.0001939,2]
[312322226,1705774933076,361.34078725,0.0001939,2]
[312322227,1705774935196,4684.69117819,0.0001939,2]
[312322228,1705774935515,1894.97702682,0.0001939,2]
[312322229,1705774943386,533.37470322,0.0001939,2]
[312322230,1705774945873,18976.97972243,0.0001939,2]
[312322231,1705774945972,532.50464613,0.0001939,2]
[312322232,1705774946043,885.29825043,0.0001939,2]
[312322233,1705774946876,1033.92055253,0.0001939,2]
[312322234,1705774949057,361.34078725,0.0001939,2]
[312322235,1705774950059,857.29441409,0.0001939,2]
[312322236,1705774951530,1894.97702682,0.0001939,2]
[312322237,1705774961398,533.37470322,0.0001939,2]
[312322238,1705774961867,18976.97972243,0.0001939,2]
[312322239,1705774961973,527.77981899,0.0001939,2]
[312322240,1705774966045,884.65466525,0.0001939,2]
[312322241,1705774969519,1894.97702682,0.0001939,2]
[312322242,1705774970073,857.29441409,0.0001939,2]
[312322243,1705774970856,1033.92055253,0.0001939,2]
[312322244,1705774973065,361.34078725,0.0001939,2]
[312322245,1705774981953,18976.97972243,0.0001939,2]
[312322246,1705774983394,533.37470322,0.0001939,2]
[312322247,1705774986057,885.62248904,0.0001939,2]
[312322248,1705774988044,855.23286859,0.0001939,2]
[312322249,1705774989524,278.97787369,0.0001939,2]
[312322250,1705774992877,592.34580771,0.0001939,2]
[312322251,1705774995285,361.34078725,0.0001939,2]
[312322252,1705775002046,460.66668666,0.0001939,2]
[312322253,1705775003401,533.37470322,0.0001939,2]
[312322254,1705775004041,855.78041265,0.0001939,2]
[312322255,1705775006380,18976.97972243,0.0001939,2]
[312322256,1705775013073,439.75588994,0.0001939,2]
[312322257,1705775024372,18807.34565612,0.0001939,2]
[312322258,1705775025391,533.37470322,0.0001939,2]
[312322259,1705775041442,531.49232082,0.0001939,2]
[312322262,1705775342792,383.38,0.00019191,2]
[312322263,1705775427969,10473.6551094,0.00019191,2]
[312322265,1705775431536,-362.38050012,0.00019962,2]
[312322266,1705775431593,-708.79421734,0.00019962,2]
[312322267,1705775431602,-622.28841052,0.00019963,2]
[312322268,1705775431611,-4628.20523515,0.00019963,2]
[312322269,1705775431620,-295.61943597,0.00019963,2]
[312322270,1705775431629,-3191.74123019,0.00019963,2]
[312322271,1705775431638,-2621.14781123,0.00019963,2]
[312322272,1705775431647,-1041.72732894,0.00019964,2]
[312322273,1705775431656,-230.6388667,0.00019964,2]
[312322274,1705775431665,-759.28292396,0.00019965,2]
[312322275,1705775431673,-150.0,0.00019965,2]
[312322276,1705775431683,-371.36730385,0.00019966,2]
[312322277,1705775431694,-265.0,0.00019966,2]
[312322278,1705775431703,-2834.18723615,0.00019966,2]
[312322279,1705775431714,-538.89466019,0.00019966,2]
[312322280,1705775431735,-580.09952,0.00019966,2]
[312322290,1705775431954,-468.49878733,0.00019966,2]
[312322291,1705775434118,856.6984896,0.00019191,2]
[312322294,1705775438460,-1050.80754485,0.00019961,2]
[312322295,1705775438471,-213.15887075,0.00019966,2]
[312322296,1705775438481,-1436.0,0.00019967,2]
[312322297,1705775438491,-21278.34797426,0.00019995,2]
[312322298,1705775438501,-282.89706329,0.0002,2]
[312322299,1705775438511,-847.06410669,0.0002,2]
[312322300,1705775438521,-1813.57467829,0.0002,2]
[312322301,1705775438533,-663.05203308,0.0002,2]
[312322302,1705775438543,-447.51741754,0.00020377,2]
[312322303,1705775438553,-1377.601495,0.00020608,2]
[312322304,1705775438563,-587.5,0.00020608,2]
[312322305,1705775438572,-499.99,0.00020608,2]
[312322306,1705775438582,-1271.81,0.00020608,2]
[312322307,1705775438593,-407.0211133,0.00021,2]
[312322308,1705775438603,-1000.0,0.0002108,2]
[312322309,1705775438613,-189.47,0.00021096,10]
[312322310,1705775438624,-500.0,0.00021109,2]
[312322311,1705775438634,-175.79,0.0002111,2]
[312322312,1705775438645,-89.62157252,0.00021114,2]
[312322313,1705775438677,-147.45842748,0.00021114,2]
[312322314,1705775438687,-200.0,0.00021118,2]
[312322315,1705775438700,-2489.48,0.00021134,2]
[312322316,1705775438711,-744.84,0.00021135,2]
[312322317,1705775438721,-406.17,0.0002115,2]
[312322318,1705775438731,-250.0,0.00021159,2]
[312322319,1705775438741,-171.73,0.00021182,2]
[312322320,1705775438751,-2000.0,0.00021228,2]
[312322321,1705775438761,-156.27,0.00021324,2]
[312322322,1705775438772,-158.73,0.00021336,2]
[312322323,1705775438783,-207.0,0.00021383,2]
[312322324,1705775438793,-162.36698721,0.00021448,2]
[312322325,1705775438803,-254.64286096,0.00021455,2]
[312322326,1705775438836,-128.73713904,0.00021455,2]
[312322327,1705775438846,-156.27,0.00021509,2]
[312322328,1705775438856,-164.44,0.00021519,2]
[312322329,1705775438865,-171.73,0.00021606,2]
[312322330,1705775438878,-676.41286096,0.00021644,2]
[312322331,1705775438890,-2278.8,0.00021644,2]
[312322332,1705775438903,-7044.78713904,0.00021644,2]
[312322333,1705775438913,-156.27,0.00021694,2]
[312322334,1705775438922,-491.20505324,0.00021753,7]
[312322335,1705775438931,-156.27,0.0002188,2]
[312322336,1705775438941,-750.0,0.000219,2]
[312322337,1705775438951,-158.73,0.00021909,2]
[312322339,1705775438961,-250.0,0.00021918,2]
[312322340,1705775438970,-153.04,0.00022003,2]
[312322341,1705775438980,-153.04,0.0002203,2]
[312322342,1705775438989,-153.04,0.00022058,2]
[312322343,1705775438999,-156.27,0.00022065,2]
[312322344,1705775439009,-147.45055761,0.00022085,2]
[312322349,1705775439029,-5.58944239,0.00022085,2]
[312322351,1705775439038,-153.04,0.00022113,2]
[312322353,1705775439048,-153.04,0.0002214,2]
[312322355,1705775439058,-153.04,0.00022168,2]
[312322357,1705775439067,-153.04,0.00022195,2]
[312322359,1705775439076,-153.04,0.00022223,2]
[312322361,1705775439086,-156.27,0.0002225,2]
[312322363,1705775439095,-153.04,0.0002225,2]
[312322365,1705775439105,-1355.48744054,0.00022271,2]
[312322367,1705775439114,-153.04,0.00022278,2]
[312322369,1705775439123,-163.57,0.00022301,2]
[312322371,1705775439132,-153.04,0.00022305,2]
[312322373,1705775439142,-153.04,0.00022333,2]
[312322375,1705775439151,-153.04,0.0002236,2]
[312322377,1705775439160,-153.04,0.00022388,2]
[312322379,1705775439169,-153.04,0.00022415,2]
[312322381,1705775439179,-156.27,0.00022435,2]
[312322383,1705775439188,-153.04,0.00022443,2]
[312322385,1705775439197,-10000.0,0.00022445,2]
[312322387,1705775439207,-158.73,0.00022483,2]
[312322390,1705775439217,-300.0,0.000225,8]
[312322392,1705775439230,-474.00607165,0.000226,2]
[312322394,1705775439239,-600.0,0.000226,8]
[312322396,1705775439249,-247.3440438,0.00022669,2]
[312322398,1705775439259,-1355.48744054,0.00022678,2]
[312322400,1705775439268,-1000.0,0.000227,8]
[312322402,1705775439278,-10000.0,0.0002274,2]
[312322404,1705775439287,-394.57144215,0.00022769,2]
[312322406,1705775439297,-206.85227,0.0002277,2]
[312322409,1705775439307,-2489.48,0.00022777,2]
[312322411,1705775439317,-21421.2568,0.00022799,2]
[312322413,1705775439327,-3455.2444,0.00022799,2]
[312322415,1705775439336,-500.0,0.00022799,2]
[312322417,1705775439346,-1000.0,0.00022799,2]
[312322419,1705775439355,-2415.8201,0.00022799,2]
[312322421,1705775439364,-1633.40841489,0.00022799,2]
[312322423,1705775439374,-896.0369,0.000228,2]
[312322425,1705775439383,-360.61947727,0.000228,2]
[312322427,1705775439393,-1300.0,0.000228,8]
[312322429,1705775439402,-360.61947726,0.00022825,2]
[312322431,1705775439412,-360.61947726,0.0002285,2]
[312322433,1705775439421,-360.61947726,0.00022875,2]
[312322436,1705775439433,-516.51875521,0.00022896,2]
[312322438,1705775439442,-279.26432617,0.00022896,2]
[312322440,1705775439452,-2145.66356241,0.00022897,2]
[312322442,1705775439462,-524.00696478,0.00022897,2]
[312322444,1705775439471,-3329.35169132,0.00022897,2]
[312322446,1705775439481,-155.0,0.00022897,2]
[312322448,1705775439491,-272.83079599,0.00022897,2]
[312322450,1705775439500,-344.36701086,0.00022897,2]
[312322452,1705775439510,-2020.53490244,0.00022898,2]
[312322454,1705775439519,-155.17564555,0.00022898,2]
[312322456,1705775439529,-3808.26321779,0.00022898,2]
[312322458,1705775439537,-1812.15097522,0.00022898,2]
[312322460,1705775439550,-1915.18587891,0.00022898,2]
[312322462,1705775439559,-698.04764279,0.00022898,2]
[312322465,1705775439569,-213.20943281,0.00022898,2]
[312322467,1705775439579,-3029.53701716,0.00022898,2]
[312322469,1705775439588,-317.43646122,0.00022898,2]
[312322498,1705775439844,-700.0,0.00022898,2]
[312322500,1705775439854,-3675.87540521,0.00022898,4]
[312322502,1705775439864,-500.0,0.00022898,2]
[312322504,1705775439873,-1000.0,0.00022899,2]
[312322507,1705775439882,-413.1709,0.00022899,2]
[312322509,1705775439891,-6874.4139,0.00022899,2]
[312322511,1705775439900,-245000.0,0.00022899,2]
[312322513,1705775439910,-78135.5925,0.00022899,2]
[312322515,1705775439919,-184.13974983,0.00022899,2]
[312322517,1705775439928,-186.63530455,0.00022899,2]
[312322521,1705775439938,-186.63530454,0.000229,2]
[312322524,1705775439947,-162.3669872,0.000229,2]
[312322527,1705775439956,-151.4583963,0.000229,2]
[312322530,1705775439966,-5000.0,0.000229,2]
[312322533,1705775439975,-1000.0,0.000229,2]
[312322535,1705775439984,-44736.2602,0.000229,2]
[312322537,1705775439994,-1806.2822096,0.000229,2]
[312322539,1705775440004,-360.61947726,0.000229,2]
[312322541,1705775440013,-335.5996367,0.000229,2]
[312322543,1705775440023,-186.63530454,0.000229,2]
[312322545,1705775440032,-187.18634131,0.000229,2]
[312322547,1705775440042,-1700.0,0.000229,8]
[312322549,1705775440051,-559.27158881,0.00022989,2]
[312322551,1705775440061,-559.27158881,0.0002299,2]
[312322553,1705775440070,-559.27158881,0.0002299,2]
[312322555,1705775440080,-203.29975543,0.00022997,2]
[312322557,1705775440090,-155.64276988,0.00022998,2]
[312322559,1705775440099,-225.94720434,0.00022999,2]
[312322561,1705775440109,-505905.04796851,0.00022999,2]
[312322563,1705775440119,-1178.34224011,0.00022999,2]
[312322565,1705775440128,-267.14965432,0.00022999,2]
[312322568,1705775440147,-188.6362865,0.00022999,2]
[312322571,1705775440159,-267.14965432,0.00022999,2]
[312322573,1705775440169,-188.6362865,0.00022999,2]
[312322575,1705775440180,-489131.59675452,0.00023,3]
[312322577,1705775440190,-573673.96327116,0.00023,2]
[312322579,1705775440200,-944.36007763,0.00023,2]
[312322581,1705775440210,-1057267.54659279,0.00023,2]
[312322584,1705775440225,-426487.768516,0.00023,2]
[312322586,1705775440237,-103956.77504338,0.00023,2]
[312322588,1705775440250,-4525.29631233,0.00023,2]
[312322591,1705775440263,-2630.32376046,0.00023,2]
[312322593,1705775440275,-676.17129601,0.00023,2]
[312322596,1705775440288,-1704.66645896,0.00023,2]
[312322598,1705775440305,-52020.0,0.00023,2]
[312322601,1705775440316,-73133.30603687,0.00023,2]